bitfinex/quotes_ETHUSD_20250328
["timestamp","ask_amount","ask_price","bid_price","bid_amount"]
[1743161221403,6.09659633,1895.3,1895.0,10.55381]
[1743161221723,6.85740167,1895.3,1895.0,5.27685]
[1743161221916,6.85740167,1895.3,1895.2,5.27648]
[1743161222094,6.85740167,1895.3,1895.2,19.77648]
[1743161222471,6.85740167,1895.3,1895.2,14.5]
[1743161222803,5.86669379,1895.3,1895.2,14.5]
[1743161223010,5.86669379,1895.3,1895.2,19.77648]
[1743161223214,5.10588845,1895.3,1895.2,19.77648]
[1743161223374,1.6548,1896.1,1895.8,5.2747]
[1743161223578,1.6548,1896.8,1895.9,5.27453]
[1743161223777,0.44565637,1896.0,1895.9,5.27453]
[1743161224014,0.44565637,1896.0,1895.9,14.5]
[1743161224241,0.44565637,1896.0,1895.9,5.27453]
[1743161224519,1.68962533,1896.0,1895.9,5.27453]
[1743161224700,1.68962533,1896.0,1895.9,19.77453]
[1743161224901,2.0724155,1896.0,1895.9,19.77453]
[1743161225101,1.62675913,1896.0,1895.8,5.27468]
[1743161225409,1.62675913,1896.0,1894.7,5.27766]
[1743161225410,8.27467,1895.9,1895.1,5.27673]
[1743161225597,3.0,1895.9,1895.4,5.27582]
[1743161225797,9.52988568,1896.0,1895.5,5.2756]
[1743161226010,1.24396896,1895.9,1895.4,5.27582]
[1743161226190,2.23941761,1895.9,1895.5,0.05274979]
[1743161226580,2.12491403,1895.9,1895.8,5.27481]
[1743161227011,2.12491403,1895.9,1895.8,19.77481]
[1743161227219,5.27102,1897.2,1896.4,5.273]
[1743161227419,5.27098,1897.2,1896.4,5.273]
[1743161227578,4.43563813,1897.3,1895.8,14.5]
[1743161227784,5.27116,1897.2,1896.3,5.27334]
[1743161227993,5.27116,1897.2,1895.3,3.0]
[1743161227994,1.43563813,1897.3,1897.2,5.27092]
[1743161228198,15.33261285,1897.4,1897.2,5.27092]
[1743161228434,15.33261285,1897.4,1897.3,5.27064]
[1743161228635,15.33261285,1897.4,1897.2,5.27069]
[1743161228994,15.33261285,1897.4,1897.2,5.27081]
[1743161229300,15.33261285,1897.4,1897.3,5.27064]
[1743161229925,2.85e-06,1897.4,1897.3,5.27064]
[1743161230126,1.6514,1898.3,1897.4,5.27025]
[1743161230294,1.6514,1898.3,1897.9,5.26881]
[1743161230491,1.6514,1898.3,1897.2,14.5]
[1743161230727,1.584689,1898.6,1897.5,5.27009]
[1743161230892,3.0,1898.8,1897.5,5.27009]
[1743161231100,5.26714,1898.6,1897.4,5.27036]
[1743161231309,5.26678,1898.7,1897.8,5.2691]
[1743161231498,5.26686,1898.7,1897.8,5.26916]
[1743161231696,5.26592,1899.0,1897.4,10.54049]
[1743161231911,5.26592,1899.0,1897.2,14.5]
[1743161231912,5.26789,1898.3,1897.5,5.2699]
[1743161232127,5.2677,1898.4,1897.5,5.2699]
[1743161232339,5.81669,1898.8,1897.2,14.5]
[1743161232499,5.26768,1898.4,1897.6,5.26979]
[1743161233005,0.55,1898.3,1896.9,5.27175]
[1743161233343,5.26799,1898.3,1897.5,5.26999]
[1743161233629,3.0,1898.5,1897.8,5.26922]
[1743161233843,5.2668,1898.7,1897.9,0.05268515]
[1743161233998,5.26746,1898.5,1897.6,5.26976]
[1743161234199,5.26685,1898.7,1897.9,5.26894]
[1743161234411,5.26648,1898.8,1897.9,5.26884]
[1743161234615,5.26648,1898.8,1897.8,5.26923]
[1743161234616,2.61895565,1899.3,1898.1,5.26835]
[1743161234848,1.5821,1899.3,1897.9,5.26897]
[1743161235005,1.5821,1899.3,1898.1,5.26842]
[1743161235204,1.5821,1899.3,1898.0,5.795357]
[1743161235405,1.5821,1899.3,1898.6,5.26692]
[1743161235962,5.2654,1899.2,1898.4,5.26748]
[1743161236161,1.5821,1899.3,1898.6,5.26693]
[1743161236459,1.5821,1899.3,1898.8,5.26621]
[1743161236774,1.5821,1899.3,1898.2,5.26802]
[1743161236940,1.5821,1899.3,1898.8,10.53275]
[1743161237140,0.2233386,1899.7,1898.2,1.053643]
[1743161237437,0.2233386,1899.7,1899.0,5.26574]
[1743161237639,0.2233386,1899.7,1899.1,14.5]
[1743161237967,5.26436,1899.6,1897.7,0.55]
[1743161238170,0.2233386,1899.7,1899.3,5.26494]
[1743161238340,0.2233386,1899.7,1899.4,14.5]
[1743161239255,0.2190386,1899.7,1899.2,5.26523]
[1743161239775,0.2190386,1899.7,1899.0,5.26581]
[1743161240063,0.2190386,1899.7,1897.4,27.882]
[1743161240064,3.2190386,1899.7,1898.3,5.2677]
[1743161240274,0.2190386,1899.7,1898.9,5.26604]
[1743161240451,0.2190386,1899.7,1898.8,5.26624]
[1743161240665,0.2190386,1899.7,1898.9,5.26609]
[1743161240828,0.2190386,1899.7,1899.0,0.05264952]
[1743161241033,0.2190386,1899.7,1899.0,5.26583]
[1743161241228,0.2190386,1899.7,1898.9,5.26606]
[1743161241462,5.26443,1899.6,1898.7,5.26675]
[1743161241763,0.2190386,1899.7,1898.8,5.2663]
[1743161241969,0.2190386,1899.7,1899.0,5.26586]
[1743161242261,0.2190386,1899.7,1898.7,5.26675]
[1743161242469,0.2190386,1899.7,1898.3,5.79458]
[1743161242470,0.2190386,1899.7,1898.8,5.26634]
[1743161242663,5.2645,1899.6,1898.6,5.26692]
[1743161242966,5.26467,1899.5,1898.7,0.05265476]
[1743161243173,5.2647,1899.5,1898.6,5.26681]
[1743161243344,5.2647,1899.5,1898.7,5.31937809]
[1743161243539,6.18420414,1899.6,1899.0,5.26572]
[1743161243740,6.18420414,1899.6,1898.6,14.5]
[1743161244080,6.18420414,1899.6,1899.2,5.26533]
[1743161244378,6.18420414,1899.6,1898.7,5.26668]
[1743161244379,6.18420414,1899.6,1898.9,5.26611]
[1743161244577,6.18420414,1899.6,1899.3,5.2649]
[1743161244762,6.18420414,1899.6,1899.1,5.26552]
[1743161244966,6.18420414,1899.6,1899.2,5.26515]
[1743161245174,6.18420414,1899.6,1899.4,5.26471]
[1743161245360,6.18420414,1899.6,1899.5,5.26454]
[1743161246251,6.18420414,1899.6,1899.5,5.31717847]
[1743161246465,6.18420414,1899.6,1899.5,5.26454]
[1743161246667,6.18420414,1899.6,1899.4,10.52931]
[1743161246973,6.18420414,1899.5,1899.4,10.52923]
[1743161247383,6.18420414,1899.5,1899.4,19.76461]
[1743161247678,6.18420414,1899.5,1899.3,5.26499]
[1743161247982,6.18420414,1899.5,1898.9,5.26601]
[1743161248139,6.18420414,1899.5,1898.9,10.53216]
[1743161248340,6.18420414,1899.5,1899.0,5.26587]
[1743161248655,6.18420414,1899.5,1898.1,3.0]
[1743161248656,6.18420414,1899.5,1898.9,5.26599]
[1743161248851,6.18420414,1899.5,1898.8,5.26632]
[1743161249275,6.18420414,1899.5,1898.6,5.2669]
[1743161249573,11.44882414,1899.5,1898.7,5.26667]
[1743161249765,6.18420414,1899.5,1898.4,5.26757]
[1743161250079,6.18420414,1899.5,1898.9,5.26609]
[1743161250279,6.18420414,1899.5,1899.0,0.0526508]
[1743161250462,6.18420414,1899.5,1898.9,10.53201]
[1743161250666,7.06423937,1899.4,1899.0,5.31829913]
[1743161250869,7.06423937,1899.4,1898.7,5.26661]
[1743161251052,7.06423937,1899.4,1898.9,10.53212]
[1743161251257,7.06423937,1899.4,1899.0,5.31855271]
[1743161251477,7.06423937,1899.4,1899.0,0.05265271]
[1743161251782,7.06423937,1899.4,1898.8,5.26646]
[1743161251977,7.06423937,1899.4,1898.7,5.26665]
[1743161252174,7.06423937,1899.4,1898.8,5.26644]
[1743161252394,7.06423937,1899.4,1898.7,5.26659]
[1743161252540,5.26548,1899.2,1898.4,5.26748]
[1743161252882,5.26548,1899.2,1898.2,14.5]
[1743161252883,0.2080322,1899.2,1898.5,0.05266383]
[1743161253045,0.2080322,1899.2,1898.2,19.76813]
[1743161253046,0.2080322,1899.2,1898.6,5.26676]
[1743161253242,0.2080322,1899.2,1898.7,5.26663]
[1743161253443,5.26576,1899.1,1898.2,19.76811]
[1743161253644,5.26642,1898.9,1897.3,5.27049]
[1743161253845,3.0,1898.6,1896.7,1.583313]
[1743161254057,0.55,1898.7,1897.1,5.2712]
[1743161254331,0.93381118,1899.1,1897.2,19.7707]
[1743161254332,0.55,1898.4,1897.2,19.7707]
[1743161254442,11.7378,1898.3,1897.2,14.5]
[1743161254644,11.7378,1898.3,1897.8,5.26923]
[1743161254967,21.48817,1898.2,1897.4,5.2703]
[1743161255154,4.7358322,1898.3,1897.6,5.26959]
[1743161255155,10.21,1898.1,1897.6,5.26959]
[1743161255478,10.21,1898.1,1897.3,5.27064]
[1743161255681,10.21,1898.1,1897.7,5.26939]
[1743161255843,0.2080322,1898.1,1897.7,5.26939]
[1743161256039,0.2080322,1898.1,1897.9,5.26888]
[1743161256244,0.2080322,1898.1,1897.8,5.26923]
[1743161256481,0.2080322,1898.1,1897.9,5.26877]
[1743161256671,0.2080322,1898.1,1898.0,19.7687]
[1743161257179,0.2080322,1898.1,1898.0,14.5]
[1743161257383,0.2080322,1898.1,1897.5,5.27007]
[1743161257582,10.21,1898.0,1897.5,5.26987]
[1743161257882,10.4180322,1898.0,1897.6,14.55268878]
[1743161258093,10.21,1897.9,1897.6,14.5]
[1743161258607,10.21,1897.9,1897.2,5.2709]
[1743161258775,10.4180322,1897.9,1897.2,5.2708]
[1743161259093,1.6453,1897.7,1896.5,5.27278]
[1743161259269,16.22,1897.6,1896.4,5.27311]
[1743161259472,21.48994,1897.6,1896.7,5.27213]
[1743161259676,5.27019,1897.5,1896.8,14.55271099]
[1743161259994,5.4782222,1897.5,1896.8,14.5]
[1743161260194,10.89849008,1897.5,1896.9,0.05271097]
[1743161260376,0.68849008,1897.5,1897.2,5.27091]
[1743161260697,0.68849008,1897.5,1896.3,5.27319]
[1743161260698,10.21,1897.4,1897.1,5.27109]
[1743161260912,10.4180322,1897.4,1896.9,14.5]
[1743161261403,10.4180322,1897.4,1897.1,5.27116]
[1743161261610,10.4180322,1897.4,1897.3,5.27064]
[1743161261611,0.2080322,1897.4,1897.3,5.27064]
[1743161262028,8.14959385,1897.4,1897.3,5.27064]
[1743161262161,8.14959385,1897.4,1897.3,19.77064]
[1743161262362,8.14959385,1897.4,1897.3,14.5]
[1743161262567,8.14959385,1897.4,1897.3,19.77064]
[1743161262912,8.14959385,1897.4,1897.3,14.5]
[1743161263207,8.14959385,1897.4,1897.3,19.77064]
[1743161264368,8.14959385,1897.4,1897.3,14.5]
[1743161264604,1.08030521,1898.6,1897.4,2.526439]
[1743161264912,5.26736,1898.5,1897.6,5.2697]
[1743161265063,5.32032467,1898.4,1897.6,14.5]
[1743161265263,0.05270467,1898.4,1897.6,14.5]
[1743161265495,0.05270467,1898.4,1897.7,5.26936]
[1743161265671,0.05270467,1898.4,1897.7,0.0526906]
[1743161265861,0.05270467,1898.4,1897.8,5.26909]
[1743161266067,10.59384283,1898.3,1897.6,14.5]
[1743161266397,10.26270467,1898.2,1897.6,14.5]
[1743161266769,0.38384283,1898.3,1897.7,5.26945]
[1743161266990,0.38384283,1898.3,1897.6,14.5]
[1743161267201,10.59384283,1898.3,1898.1,5.26839]
[1743161267370,0.38384283,1898.3,1898.1,5.32106775]
[1743161267696,10.21,1898.8,1898.1,0.05267775]
[1743161267864,10.21,1898.7,1898.2,5.268]
[1743161268068,10.21,1898.7,1898.4,5.26735]
[1743161268291,10.21,1898.7,1898.3,5.26769]
[1743161268989,10.21,1898.7,1898.4,5.26749]
[1743161269800,10.21,1898.7,1898.3,5.26786]
[1743161270000,10.21,1898.7,1898.1,5.26818]
[1743161270195,10.21,1898.7,1898.0,5.26845]
[1743161270396,0.05270467,1898.6,1898.1,5.26832]
[1743161270602,10.21,1898.7,1898.2,5.26811]
[1743161270899,10.21,1898.7,1898.3,0.05267251]
[1743161271097,10.21,1898.7,1898.2,0.05267251]
[1743161271277,10.21,1898.7,1898.2,5.32071251]
[1743161271478,10.21,1898.7,1898.3,5.26785]
[1743161271674,10.21,1898.7,1898.2,5.26804]
[1743161271991,10.21,1898.7,1898.1,5.26828]
[1743161272590,0.05270467,1898.6,1898.0,5.26861]
[1743161272789,10.21,1898.5,1898.0,5.26861]
[1743161273132,10.21,1898.5,1898.2,5.26793]
[1743161273398,3.0,1898.9,1898.3,0.05267191]
[1743161273600,10.26270467,1898.8,1898.3,0.05267191]
[1743161273790,10.21,1898.7,1898.3,0.05267191]
[1743161273993,10.21,1898.6,1898.2,10.53597]
[1743161274189,10.21,1898.7,1898.2,5.26793]
[1743161274400,10.21,1898.7,1897.9,5.26897]
[1743161274401,10.26270467,1898.6,1897.9,5.26886]
[1743161274580,10.21,1898.6,1898.0,5.26857]
[1743161274785,10.21,1898.6,1898.1,5.26841]
[1743161275201,10.21,1898.6,1898.2,5.26809]
[1743161275410,10.21,1898.6,1898.2,5.26804]
[1743161275608,10.21,1898.7,1898.2,5.26804]
[1743161276114,10.21,1898.6,1898.2,5.26804]
[1743161276613,10.21,1898.7,1898.0,5.2687]
[1743161276781,10.21,1898.7,1898.2,5.26794]
[1743161276982,10.26270467,1899.0,1898.3,5.26783]
[1743161277389,10.21,1898.9,1898.3,5.26783]
[1743161277717,6.23364408,1898.6,1898.4,0.05266645]
[1743161277912,6.23364408,1898.6,1898.3,5.26761]
[1743161278289,6.23364408,1898.6,1898.2,10.53617]
[1743161278478,6.23364408,1898.6,1898.3,5.26778]
[1743161278684,6.23364408,1898.6,1897.9,5.2688]
[1743161278902,6.23364408,1898.6,1898.0,5.2685]
[1743161279107,10.21,1898.5,1898.0,5.2685]
[1743161279308,10.21,1898.5,1898.1,5.26828]
[1743161279703,10.21,1898.5,1898.3,5.26775]
[1743161279904,10.21,1898.5,1898.2,5.26813]
[1743161280105,10.21,1898.5,1898.3,0.05267281]
[1743161280287,10.21,1898.5,1898.1,5.26826]
[1743161280688,16.44364408,1898.5,1898.2,5.32076281]
[1743161280889,16.44364408,1898.5,1898.0,5.26858]
[1743161281088,5.26807,1898.3,1897.6,14.5]
[1743161281347,10.26270467,1898.2,1897.6,14.5]
[1743161281629,10.26270467,1898.2,1897.6,19.7697]
[1743161281834,15.53089467,1898.2,1897.6,14.5]
[1743161282035,10.21,1898.2,1897.6,14.5]
[1743161282187,0.48213463,1898.1,1897.1,5.2712]
[1743161282386,10.26270467,1898.0,1897.2,5.27087]
[1743161282619,10.26270467,1898.0,1897.3,14.5]
[1743161282620,15.47911,1897.9,1897.3,14.5]
[1743161282831,15.53200467,1897.8,1896.8,5.27203]
[1743161283033,15.53200467,1897.8,1896.2,4.39476647]
[1743161283034,5.2702,1897.5,1896.7,5.2723]
[1743161283189,10.21,1897.4,1896.8,0.05271022]
[1743161283392,10.21,1897.4,1896.8,5.27203]
[1743161283592,10.21,1897.6,1897.3,5.2705]
[1743161283786,10.21,1897.7,1897.3,5.2705]
[1743161284119,10.69213463,1897.8,1897.3,5.2705]
[1743161284298,10.69213463,1897.8,1897.3,5.27055]
[1743161284504,10.69213463,1897.8,1897.3,5.27053]
[1743161284707,10.69213463,1897.8,1897.3,10.54107]
[1743161284708,10.21,1897.8,1897.3,10.54107]
[1743161285106,10.21,1897.8,1897.3,5.2705]
[1743161285318,10.21,1897.8,1897.4,5.27024]
[1743161285520,10.21,1897.8,1897.4,5.27035]
[1743161285722,0.38572671,1897.7,1897.4,5.27035]
[1743161285924,0.38572671,1897.7,1897.3,5.27064]
[1743161286238,0.38572671,1897.7,1897.4,5.27024]
[1743161286395,0.38572671,1897.7,1897.2,19.77092]
[1743161286727,8.39858807,1897.7,1897.2,14.5]
[1743161286936,8.39858807,1897.7,1897.2,19.77067]
[1743161287089,8.39858807,1897.7,1897.2,14.5]
[1743161287494,8.39858807,1897.7,1897.5,5.26992]
[1743161287731,8.01286136,1897.7,1897.5,5.26992]
[1743161288026,8.01286136,1897.7,1897.4,5.27022]
[1743161288447,8.01286136,1897.7,1897.3,5.27054]
[1743161288738,8.01286136,1897.7,1897.2,19.77086]
[1743161289541,8.01286136,1897.7,1897.3,0.05269903]
[1743161289837,8.01286136,1897.6,1897.3,0.05269903]
[1743161290244,8.01286136,1897.6,1897.5,5.27009]
[1743161290613,8.01286136,1897.6,1897.5,5.32278239]
[1743161291047,8.01286136,1897.6,1897.5,5.27009]
[1743161291215,8.01286136,1897.6,1897.3,10.54105]
[1743161291414,8.01286136,1897.6,1897.5,5.27009]
[1743161292151,8.01286136,1897.6,1897.3,5.27048]
[1743161292447,8.01286136,1897.6,1897.4,5.27027]
[1743161292612,8.01286136,1897.6,1897.5,5.27009]
[1743161293213,8.01286136,1897.6,1897.5,5.32278351]
[1743161293736,8.01286136,1897.6,1897.5,5.27009]
[1743161294858,8.01286136,1897.6,1897.5,5.32278131]
[1743161295755,8.01286136,1897.6,1897.5,19.82278131]
[1743161295922,8.01286136,1897.6,1897.5,19.77009]
[1743161298843,8.01286136,1897.6,1897.5,14.5]
[1743161299024,8.01286136,1897.6,1897.1,5.2712]
[1743161299223,8.01286136,1897.6,1897.4,5.2702]
[1743161299431,8.01286136,1897.6,1897.5,5.32278722]
[1743161299638,8.01286136,1897.6,1897.5,5.27009]
[1743161299832,8.01286136,1897.6,1897.4,19.77035]
[1743161300250,18.22286136,1897.6,1897.4,14.5]
[1743161302121,18.22286136,1897.6,1897.5,5.27009]
[1743161302444,18.22286136,1897.6,1897.4,14.5]
[1743161303155,18.22286136,1897.6,1897.4,19.77032]
[1743161303324,18.22286136,1897.6,1897.4,14.5]
[1743161303525,8.01286136,1897.5,1897.4,14.5]
[1743161303724,8.01286136,1897.5,1897.4,19.77036]
[1743161305356,8.01286136,1897.5,1897.4,5.27036]
[1743161305652,8.01286136,1897.5,1897.3,5.27049]
[1743161305826,8.01286136,1897.5,1897.4,14.5]
[1743161306258,8.01286136,1897.5,1897.4,19.77036]
[1743161308369,1.36e-06,1897.5,1897.4,19.77036]
[1743161309240,1.36e-06,1897.5,1897.4,21.353337]
[1743161310836,1.36e-06,1897.5,1897.4,22.38896098]
[1743161311236,1.36e-06,1897.5,1897.4,26.58453387]
[1743161312852,1.36e-06,1897.5,1897.4,53.03315387]
[1743161313053,1.36e-06,1897.5,1897.4,46.97144087]
[1743161313585,10.21,1898.5,1897.9,5.26898]
[1743161313586,6e-08,1898.0,1897.9,5.26898]
[1743161314393,6e-08,1898.0,1897.9,19.76898]
[1743161314868,6e-08,1898.0,1897.9,20.83996932]
[1743161316590,6e-08,1898.0,1897.9,19.76898]
[1743161316750,10.21000006,1898.0,1897.1,7.89338942]
[1743161316961,10.21000006,1898.0,1896.8,5.2718]
[1743161316962,10.21,1897.9,1897.6,5.26977]
[1743161317260,10.21,1897.9,1897.4,5.27026]
[1743161317587,10.21,1897.9,1897.4,5.27025]
[1743161317887,10.21,1897.9,1897.4,5.32293686]
[1743161318357,0.05270467,1897.8,1897.5,14.5]
[1743161318561,10.21,1897.9,1897.5,14.5]
[1743161318887,10.26270467,1897.9,1897.5,14.5]
[1743161319052,10.26270467,1897.9,1896.8,5.27187]
[1743161319053,10.21,1897.5,1896.6,5.27247]
[1743161319262,2.62238942,1897.2,1896.2,10.54712]
[1743161319600,2.62238942,1897.2,1895.9,33.13635]
[1743161319601,2.62238942,1897.0,1896.3,14.5]
[1743161319885,10.21,1897.1,1896.5,2.62238942]
[1743161320070,16.22,1897.2,1897.1,5.2712]
[1743161320246,10.21,1897.5,1896.9,5.27165]
[1743161320444,0.38631533,1897.4,1897.0,5.32416271]
[1743161320687,0.8696555,1897.4,1897.0,5.32406271]
[1743161320848,0.8696555,1897.4,1897.0,5.27136]
[1743161321375,0.8696555,1897.4,1896.9,5.27165]
[1743161321541,0.8696555,1897.4,1897.0,5.27138]
[1743161321746,0.8696555,1897.4,1896.9,5.2716]
[1743161321990,0.38631533,1897.4,1896.9,5.2716]
[1743161322148,2.68238458,1897.4,1896.9,5.2716]
[1743161322344,0.05270467,1897.3,1896.8,5.27202]
[1743161322646,2.73508925,1897.4,1896.9,5.27167]
[1743161323243,2.73508925,1897.4,1896.8,5.272]
[1743161323472,2.73508925,1897.4,1896.6,5.27238]
[1743161323679,15.48067,1897.3,1896.4,1.05318149]
[1743161323880,7.89426942,1896.9,1896.3,14.5]
[1743161324049,7.89488942,1896.7,1896.3,14.5]
[1743161324248,10.26270467,1896.6,1895.9,5.27443]
[1743161324453,16.27270467,1896.6,1895.9,5.2744]
[1743161324681,2.62238942,1896.3,1895.5,0.00411316]
[1743161324979,10.21,1896.2,1896.0,14.5]
[1743161325180,5.2744,1896.0,1895.5,0.00411316]
[1743161325383,10.26270467,1895.9,1895.5,0.00411316]
[1743161325898,6.01,1896.1,1895.5,0.00411316]
[1743161325899,16.22,1896.1,1895.6,5.27537]
[1743161326251,0.05270467,1896.0,1895.5,0.00411316]
[1743161326483,10.21,1895.9,1895.5,14.55686074]
[1743161326801,10.21,1895.9,1895.7,5.2749]
[1743161326993,10.21,1895.9,1895.6,5.27535]
[1743161327282,10.21,1895.9,1895.5,0.00411316]
[1743161328355,0.05270467,1895.8,1895.5,0.00411316]
[1743161328555,1.604,1895.7,1895.5,0.00411316]
[1743161329386,1.604,1895.7,1895.4,14.5]
[1743161329793,10.21,1895.9,1895.5,5.27539]
[1743161330001,0.05270467,1895.8,1895.4,14.5]
[1743161330195,10.21,1895.7,1895.4,14.5]
[1743161330354,10.21,1895.7,1895.4,19.77591]
[1743161330558,10.21,1895.7,1895.4,19.77587]
[1743161330865,10.21,1896.3,1895.4,1.977587]
[1743161331065,5.27296,1896.5,1895.1,5.2767]
[1743161331365,10.26270467,1896.4,1896.0,14.5]
[1743161331556,0.05270467,1896.4,1896.0,14.5]
[1743161332783,5.32593467,1896.4,1896.0,14.5]
[1743161333198,5.32593467,1896.4,1895.6,5.27523]
[1743161333199,6.56,1896.3,1895.6,5.27523]
[1743161333396,15.53648467,1896.2,1895.2,1.03515645]
[1743161333583,10.21,1896.1,1895.4,5.27582]
[1743161333783,10.21,1896.1,1895.6,5.27518]
[1743161333961,10.26270467,1896.2,1895.7,5.27499]
[1743161334157,10.21,1896.2,1895.8,14.55274114]
[1743161334363,10.21,1896.2,1895.8,14.5]
[1743161335501,10.21,1896.2,1895.8,19.7747]
[1743161335682,10.21,1896.2,1895.8,19.77465]
[1743161335875,10.21,1896.2,1895.8,14.5]
[1743161337004,10.21,1896.2,1895.8,19.7747]
[1743161337307,10.21,1896.2,1895.9,5.27453]
[1743161337308,7.98485464,1896.1,1895.9,5.27453]
[1743161337519,7.98485464,1896.1,1895.8,19.7747]
[1743161337707,7.98485464,1896.1,1895.8,19.77466]
[1743161338068,7.98485464,1896.1,1895.8,25.04934]
[1743161338298,7.98485464,1896.1,1895.8,19.77466]
[1743161339012,7.98485464,1896.1,1896.0,5.27426]
[1743161340781,7.98485464,1896.1,1895.9,5.27442]
[1743161340986,7.98485464,1896.0,1895.9,5.27442]
[1743161343910,4.64e-06,1896.0,1895.9,5.27442]
[1743161344913,4.64e-06,1896.0,1895.9,22.40182725]
[1743161345575,2.84e-06,1896.0,1895.9,22.40182725]
[1743161346205,10.21,1897.4,1896.9,5.27175]
[1743161346373,2.62740725,1897.4,1896.8,5.27193]
[1743161346572,10.21,1897.3,1896.9,5.27167]
[1743161346796,10.21,1897.3,1897.0,5.27147]
[1743161347003,10.21,1897.3,1897.1,14.5]
[1743161347183,10.21,1897.3,1897.1,19.77117]
[1743161347401,10.21,1897.3,1897.1,14.5]
[1743161347706,2.68011192,1897.2,1896.6,5.27245]
[1743161347912,2.68011192,1897.2,1896.8,5.2719]
[1743161348086,2.62740725,1897.2,1896.8,19.7719]
[1743161348319,10.21,1897.3,1896.8,19.7719]
[1743161348510,10.26270467,1897.3,1896.8,19.7719]
[1743161348710,2.62740725,1897.2,1896.8,14.5]
[1743161348932,0.05270467,1897.1,1896.8,14.5]
[1743161349330,3.5465586,1897.2,1896.8,14.5]
[1743161349720,3.5465586,1897.2,1896.7,10.54448]
[1743161349920,3.5465586,1897.2,1896.7,10.54441]
[1743161350117,2.62740725,1897.0,1895.8,2.62740725]
[1743161350326,2.62740725,1896.8,1896.2,5.27355]
[1743161350651,10.26270467,1896.7,1896.2,19.77355]
[1743161350803,10.26270467,1896.7,1896.2,19.77353]
[1743161351011,10.21,1896.7,1896.4,5.27296]
[1743161351605,10.21,1896.7,1896.4,10.54597]
[1743161351805,10.21,1896.7,1896.6,5.27259]
[1743161352065,16.60507983,1897.1,1896.5,5.2727]
[1743161352256,10.21,1897.0,1896.5,5.2727]
[1743161353041,10.21,1897.0,1896.4,5.27309]
[1743161353042,10.26270467,1897.0,1896.4,5.27309]
[1743161353242,10.26270467,1897.0,1896.4,10.54614]
[1743161353540,10.26270467,1897.0,1896.4,10.54608]
[1743161353941,0.38552627,1896.9,1896.4,10.54608]
[1743161354310,0.38552627,1896.9,1896.2,19.77345]
[1743161354661,2.62740725,1896.7,1896.2,14.5]
[1743161354813,10.26270467,1896.6,1896.2,14.5]
[1743161355013,10.21,1896.6,1896.3,5.27338]
[1743161355243,10.21,1896.6,1896.4,5.27313]
[1743161355550,10.21,1896.6,1896.4,5.27304]
[1743161355755,10.21,1896.6,1896.4,5.27302]
[1743161355969,10.21,1896.6,1896.5,5.27287]
[1743161356126,10.21,1896.6,1896.5,5.32559189]
[1743161356328,0.38552627,1896.8,1896.6,5.27247]
[1743161356638,10.21,1897.2,1896.6,5.27247]
[1743161356827,10.26270467,1897.3,1896.6,5.27247]
[1743161357229,6.12029856,1896.8,1896.6,5.27245]
[1743161357541,6.12029856,1896.8,1896.7,5.27231]
[1743161357921,11.826,1897.7,1896.7,14.5]
[1743161358222,14.45340725,1897.7,1897.0,5.27135]
[1743161358427,14.45340725,1897.7,1897.1,5.2711]
[1743161358663,10.26270467,1897.6,1897.1,5.2711]
[1743161358868,10.26270467,1897.6,1897.2,14.5]
[1743161359330,10.21,1897.6,1897.2,14.5]
[1743161359719,0.48198245,1897.5,1897.2,14.5]
[1743161360729,10.21,1897.6,1897.2,14.5]
[1743161361244,10.26270467,1897.6,1897.2,14.5]
[1743161362121,10.21,1897.6,1897.2,14.5]
[1743161362322,10.21,1897.6,1897.3,5.27057]
[1743161362569,0.38558635,1897.5,1897.3,5.27057]
[1743161363151,0.38558635,1897.5,1897.2,19.77089]
[1743161363456,0.38558635,1897.5,1897.2,14.5]
[1743161363654,0.38558635,1897.5,1896.8,6.32512631]
[1743161363655,0.43829102,1897.5,1896.8,6.32512631]
[1743161363849,0.05270467,1897.5,1896.9,5.2716]
[1743161364157,10.21,1897.5,1897.0,19.77139]
[1743161364531,10.21,1897.5,1897.1,5.27113]
[1743161364730,10.21,1897.5,1896.9,5.27157]
[1743161364943,10.21,1897.5,1896.9,10.54314]
[1743161365261,10.21,1897.5,1897.0,14.5]
[1743161365775,10.21,1897.5,1897.3,5.27055]
[1743161366068,1.6165,1898.2,1897.8,5.26913]
[1743161366269,10.21,1898.2,1897.8,10.59096178]
[1743161366584,11.27713,1898.6,1897.7,5.26948]
[1743161366585,12.83740725,1898.5,1897.7,5.26948]
[1743161366761,12.83740725,1898.5,1897.7,10.53885]
[1743161366762,2.62740725,1898.3,1897.7,10.53885]
[1743161366930,2.62740725,1898.3,1897.8,10.53832]
[1743161367125,2.62740725,1898.3,1897.8,5.26912]
[1743161367339,12.83740725,1898.5,1898.0,5.2685]
[1743161367562,12.83740725,1898.5,1898.1,14.5]
[1743161368265,2.62740725,1898.3,1898.1,14.5]
[1743161368831,0.38580529,1898.4,1898.1,14.5]
[1743161369230,12.83740725,1898.5,1898.1,14.5]
[1743161369639,10.21,1898.5,1898.1,19.76832]
[1743161369821,10.21,1898.5,1898.1,14.5]
[1743161370029,10.21,1899.2,1898.2,5.26795]
[1743161370226,2.62740725,1898.5,1898.1,19.76841]
[1743161370461,3.2683134,1898.2,1898.1,19.76841]
[1743161371037,3.2683134,1898.2,1898.1,14.5]
[1743161371270,3.2683134,1898.2,1898.1,19.76842]
[1743161373286,3.4e-06,1898.2,1898.1,22.39582725]
[1743161373493,10.21,1899.2,1898.2,5.26797]
[1743161373651,10.21,1899.4,1899.0,5.26582]
[1743161373841,16.22,1899.5,1898.9,5.26611]
[1743161374044,16.28509046,1899.5,1898.9,5.26609]